Cogmind - Beta 10.2 @@@ ROGUE MODE // 2021.01.04 @ 03:11:21 Player: Big Tony Result: Destroyed by D-53 Grenadier with Mini Grenade Launcher Performance ------------- Evolutions (0) 0 Regions Visited (2) 400 Robots Destroyed (28) 140 Value Destroyed (514) 514 Prototype IDs (2) 40 Alien Tech Used (0) 0 Bonus (0) 0 TOTAL SCORE: 1094 Bonus ------- None Cogmind --------- Core Integrity 0/250 Matter 154/300 Energy 99/100 System Corruption 5% Temperature Cool (0) Movement Core (100) Ox1 Location -10/Mines Parts ------- > --- POWER (1) -------- (None) > --- PROPULSION (2) --- (None) > --- UTILITY (2) ------ Small Storage Unit Targeting Computer > --- WEAPON (2) ------- (None) > --- INVENTORY (6) ---- Medium Armor Plating EM Pulse Gun EMP Blaster EMP Blaster Peak State ------------ > --- POWER ------------ Light Ion Engine > --- PROPULSION ------- Aluminum Leg Aluminum Leg > --- UTILITY ---------- Heat Sink Small Storage Unit > --- WEAPON ----------- EM Pulse Gun Grenade Launcher > --- INVENTORY -------- Aluminum Leg Targeting Computer Medium Armor Plating Medium Armor Plating EMP Blaster EMP Blaster [Rating: 8] Favorites ----------- Power Light Ion Engine Engine Light Ion Engine Propulsion Aluminum Leg Leg Aluminum Leg Utility Small Storage Unit Device Heat Sink Storage Small Storage Unit Processor Targeting Computer Weapon Grenade Launcher Energy Gun EM Pulse Gun Energy Cannon Beam Cannon Launcher Grenade Launcher Build | -11 -10 -10 ------- Run | Scr Mat Min Slots Evolved . | . . . Power . | . . . Propulsion . | . . . Utility . | . . . Weapon . | . . . Parts Attached 22 | 6 14 2 Power 3 | 1 2 . Engine 3 | 1 2 . Core . | . . . Reactor . | . . . Propulsion 6 | 2 4 . Treads . | . . . Leg 6 | 2 4 . Wheel . | . . . Hover . | . . . Flight . | . . . Utility 3 | 1 2 . Device 1 | 1 . . Storage 1 | . 1 . Processor 1 | . 1 . Hackware . | . . . Protection . | . . . Artifact . | . . . Weapon 10 | 2 6 2 Energy Gun 5 | 2 3 . Energy Cannon 1 | . . 1 Ballistic Gun . | . . . Ballistic Cannon . | . . . Launcher 4 | . 3 1 Special Weapon . | . . . Impact Weapon . | . . . Slashing Weapon . | . . . Piercing Weapon . | . . . Special Melee Weapon . | . . . Unidentified Prototypes . | . . . Parts Lost 7 | . 1 6 Power 1 | . . 1 Propulsion 2 | . . 2 Utility . | . . . Weapon 4 | . 1 3 Highest Loss Streak 6 | . 1 6 Average Slot Usage (%) 98 | . 99 96 Engine 14 | . 14 14 Leg 27 | . 27 26 Device 7 | . 8 . Storage 13 | . 13 14 Processor 6 | . 5 14 Energy Gun 13 | . 14 2 Launcher 13 | . 13 14 Naked Turns . | . . . Heaviest Build 13 | 8 13 13 Greatest Support 20 | 20 20 20 Greatest Overweight (x) 1 | . 1 1 Average Overweight (x) . | . . . Largest Inventory Capacity 6 | 4 6 6 Average Capacity 5 | 4 5 6 Most Carried 6 | 3 6 5 Average Carried 4 | 1 4 4 Final Capacity 6 | 4 6 6 Final Carried 5 | 2 5 4 Class Distribution -------------------- 100% | Mutant Dominant Class ---------------- Mutant | -10/Materials Mutant | -10/Mines Resources | -11 -10 -10 ----------- Run | Scr Mat Min Matter Collected 580 | 260 228 92 Remotely . | . . . Salvage Created 526 | 50 349 127 Parts 44 | 2 36 6 Haulers Intercepted . | . . . Recyclers Shooed 1 | . 1 . Parts Field Recycled . | . . . Retrieved Matter . | . . . Parts Self-Destructed . | . . . Prevented . | . . . Kills | -11 -10 -10 ------- Run | Scr Mat Min Combat Hostiles Destroyed 18 | 1 15 2 Guns 3 | 1 2 . Cannons 1 | . . 1 AOE 14 | . 13 1 Classes Destroyed 7 | 1 5 1 Worker 1 | . 1 . Builder 2 | . 1 1 Tunneler 2 | . . 2 Recycler 2 | . 1 1 Watcher 3 | . 3 . Swarmer 9 | . 9 . Grunt 9 | 1 6 2 Best Kill Streak 13 | 1 13 2 Combat Bots Only 8 | 1 8 2 Max Kills in Single Turn 4 | 1 4 2 Gunslinging . | . . . Exploded 4 | . 4 1 Melee . | . . . Uniques/NPCs Destroyed . | . . . Combat | -11 -10 -10 -------- Run | Scr Mat Min Damage Taken 1031 | 53 415 563 Core 259 | 10 79 170 Absorbed by Shields . | . . . Core Remaining (%) 96 | 96 . . Volleys Fired 48 | 6 35 7 Largest 2 | 2 2 2 Hottest 90 | 90 80 90 Shots Fired 83 | 12 58 13 Gun 45 | 12 33 . Cannon 6 | . . 6 Launcher 32 | . 25 7 Special . | . . . Kinetic . | . . . Thermal 40 | 6 28 6 Explosive 32 | . 25 7 Electromagnetic 11 | 6 5 . Robot Hit Streak 8 | 4 8 2 Robot Miss Streak 5 | 2 5 3 Penetration Max . | . . . Secondary Targets . | . . . Shots Hit Robots 45 | 7 33 5 Core Hits 44 | 2 29 13 Critical Hits . | . . . Critical Kills . | . . . Critical Parts Destroyed . | . . . Melee Attacks . | . . . Impact . | . . . Slashing . | . . . Piercing . | . . . Sneak Attacks . | . . . Combat Hostiles . | . . . Follow-up Attacks . | . . . Damage Inflicted 1894 | 129 1308 457 Guns 334 | 102 232 . Cannons 70 | . . 70 Explosions 1464 | 27 1054 383 Melee . | . . . Ramming 26 | . 22 4 Kinetic . | . . . Thermal 322 | 52 200 70 Explosive 1414 | . 1031 383 Electromagnetic 132 | 77 55 . Impact . | . . . Slashing . | . . . Piercing . | . . . Highest Corruption 5 | . 5 5 Average Corruption 4 | . 4 5 Corruption Purged . | . . . Effects 22 | . 18 4 Message Errors 9 | . 8 1 Matter Fused 5 | . 5 . Heat Flow Errors 2 | . 1 1 Energy Discharges 3 | . 3 . Data Loss (minor) 1 | . 1 . Targeting Errors 2 | . . 2 Overload Shots . | . . . Overflow Damage 25 | . 23 2 Projectiles . | . . . Explosions 25 | . 23 2 Melee . | . . . Knockbacks 1 | . 1 . Impact 1 | . 1 . Kinetic . | . . . Secondary . | . . . Self-Inflicted Damage 188 | . 173 15 Shots 8 | . 7 1 Rammed 4 | . 3 1 Targets Rammed 4 | . 3 1 Kicked . | . . . Crushed . | . . . Highest Temperature 268 | 210 106 268 Average Temperature 77 | 108 27 71 Received Heat Transfer 93 | 30 54 9 Siege Activations . | . . . Robots Corrupted . | . . . Combat Hostiles . | . . . Parts Fried . | . . . Impact Corruptions . | . . . Robots Melted . | . . . Combat Hostiles . | . . . Parts Melted . | . . . Heat Transferred 840 | 124 568 148 Parts Sabotaged . | . . . Parts Stolen . | . . . Parts Stripped . | . . . Power Chain Reactions 2 | 1 1 . Missiles Intercepted . | . . . Alert | -11 -10 -10 ------- Run | Scr Mat Min Peak Influence 299 | 20 299 82 Initial 22 | . 13 22 Average 131 | 3 149 43 Maximum Alert Level 1 | . 1 . Low Security (%) 75 | 100 71 100 Level 1 24 | . 28 . Level 2 . | . . . Level 3 . | . . . Level 4 . | . . . Level 5 . | . . . High Security . | . . . Max Security . | . . . Squads Dispatched 4 | . 4 . Investigation 3 | . 3 . Extermination . | . . . Reinforcement 1 | . 1 . Assault . | . . . Garrison . | . . . Intercept . | . . . Construction Impeded . | . . . Haulers Reinforced . | . . . Stealth | -11 -10 -10 --------- Run | Scr Mat Min Distress Signals 1 | . 1 . Communications Jammed . | . . . Distress Signals . | . . . Times Spotted 46 | 1 21 24 Peak Tracking Total 20 | 1 6 20 Tactical Retreats . | . . . Traps | -11 -10 -10 ------- Run | Scr Mat Min Traps Triggered 6 | . 6 . Indirectly . | . . . Trap Hack Attempts . | . . . Triggered . | . . . Disarmed . | . . . Reprogrammed . | . . . Reused . | . . . Traps Extracted . | . . . Installed . | . . . Triggered . | . . . Machines | -11 -10 -10 ---------- Run | Scr Mat Min Machines Disabled 2 | . 2 . Max in Single Turn 1 | . 1 . Machines Sabotaged . | . . . Garrisons Compromised . | . . . Overloaded Fab Kills . | . . . Fab Network Shutdowns . | . . . Hacking | -11 -10 -10 --------- Run | Scr Mat Min Machines Accessed 4 | . 4 . Terminals 4 | . 4 . Fabricators . | . . . Repair Stations . | . . . Recycling Units . | . . . Scanalyzers . | . . . Garrison Access . | . . . Total Hacks 13 | . 13 . Successful 7 | . 7 . Failed 6 | . 6 . Catastrophic 2 | . 2 . Database Lockouts . | . . . Manual . | . . . Terminals 13 | . 13 . Fabricators . | . . . Repair Stations . | . . . Recycling Units . | . . . Scanalyzers . | . . . Garrison Access . | . . . Terminal Hacks 7 | . 7 . Prototype ID Bank 1 | . 1 . Terminal Index 1 | . 1 . Alert Level 1 | . 1 . Unreport Threat 1 | . 1 . Dispatch Records 1 | . 1 . Maintenance Status 1 | . 1 . Investigation Status 1 | . 1 . Fabricator Hacks . | . . . Repair Station Hacks . | . . . Recycling Unit Hacks . | . . . Scanalyzer . | . . . Garrison Access Hacks . | . . . Unauthorized Hacks . | . . . Terminals . | . . . Fabricators . | . . . Repair Stations . | . . . Recycling Units . | . . . Scanalyzers . | . . . Garrison Access . | . . . Data Cores Recovered . | . . . Used . | . . . Hacking Detections 4 | . 4 . Full Trace Events 3 | . 3 . Feedback Events . | . . . Feedback Blocked . | . . . Robot Schematics Acquired . | . . . Robots Built . | . . . Matter . | . . . Time . | . . . Total Robot Build Rating . | . . . Part Schematics Acquired . | . . . Parts Built . | . . . Matter . | . . . Time . | . . . Total Part Build Rating . | . . . Parts Repaired . | . . . Time . | . . . Parts Recycled . | . . . Recycled Matter . | . . . Retrieved Matter . | . . . Retrieved Components . | . . . Parts Scanalyzed . | . . . Part Schematics Acquired . | . . . Parts Damaged . | . . . Bothacking | -11 -10 -10 ------------ Run | Scr Mat Min Used RIF Installer . | . . . Robots Hacked . | . . . Non-combat . | . . . Combat . | . . . Robot Hacks Applied . | . . . Relay Couplers Released . | . . . Robots Rewired . | . . . Allies Hacked . | . . . Hacks Repelled . | . . . Allies | -11 -10 -10 -------- Run | Scr Mat Min Total Allies . | . . . Largest Group . | . . . Highest-Rated Group . | . . . Highest-Rated Ally . | . . . Total Orders . | . . . Ally Attacks . | . . . Total Damage . | . . . Kills . | . . . Allies Corrupted . | . . . Allies Melted . | . . . Intel | -11 -10 -10 ------- Run | Scr Mat Min Robot Analysis Total . | . . . Derelict Logs Recovered 1 | . . 1 Drone Launches . | . . . Drone Recoveries . | . . . Exploration | -11 -10 -10 ------------- Run | Scr Mat Min Turns Passed 1682 | 113 1428 141 Spaces Moved 1241 | 79 1068 94 Core 22 | 19 . 3 Treads . | . . . Legs 1219 | 60 1068 91 Wheels . | . . . Hover . | . . . Flight . | . . . Fastest Speed 50 | 50 120 100 Average Speed 119 | 103 120 120 Slowest Speed 150 | 120 150 150 Overloaded Moves . | . . . Propulsion Burnouts . | . . . Robots Hopped . | . . . Cave-ins Triggered . | . . . Exploration Rate (%) 47 | 9 99 35 Regions Visited 2 Branch Regions 1 Pre-discovered Areas 1 | . . 1 Known Exits Taken . | . . . Unknown Exits Taken 2 | 1 1 . Scrap Searched 1 | . . 1 Spaces Dug 5 | . 5 . Terrain Destroyed 200 | . 148 52 Melee . | . . . Projectile . | . . . AOE 200 | . 148 52 Terrain Rammed . | . . . Walls Destroyed . | . . . Machines Disabled . | . . . Actions | -11 -10 -10 --------- Run | Scr Mat Min Total 1363 | 98 1156 109 Wait 14 | . 9 5 Move 1239 | 78 1067 94 Hop . | . . . Pick Up 24 | 8 16 . Fast Attach 1 | . 1 . Attach 9 | 6 2 1 Detach . | . . . Swap 12 | . 11 1 Drop 12 | . 12 . Fire 48 | 6 35 7 Melee . | . . . Ram . | . . . Kick 4 | . 3 1 Crush . | . . . Escape Stasis . | . . . Rewire . | . . . Trap . | . . . Miscellaneous . | . . . Route ------- -11/Scrapyard -10/Materials (discovered 5 exits: [*Mat x3] / [*Min x2]) -10/Mines History --------- Turn | Location | Event 2 | -11/Scrapyard | Met Revision 17 69 | -11/Scrapyard | Discovered new exit (range 8) 114 | -11/Scrapyard | Entered Materials 246 | -10/Materials | Destroyed 8 combat bots 260 | -10/Materials | Discovered new exit (range 16) 327 | -10/Materials | Build established: Mutant 340 | -10/Materials | Discovered new exit (range 16) 435 | -10/Materials | Discovered new exit (range 15) 846 | -10/Materials | Discovered new exit (range 8) 918 | -10/Materials | Discovered new exit (range 13) 1542 | -10/Materials | Entered Mines 1653 | -10/Mines | Assembled infested the area 1677 | -10/Mines | Core integrity fell below 50% 1683 | -10/Mines | Core integrity fell below 20% 1683 | -10/Mines | Destroyed by D-53 Grenadier with Mini Grenade Launcher Last Messages --------------- C-30 ARC bursts open, deploying its payload. D-53 Grenadier unfolds itself. Destroyed Wheel. R-06 Scavenger destroyed. as-42947 powers down. Aluminum Leg destroyed. Grenade Launcher destroyed. as-42947 destroyed. R-06 Scavenger destroyed. U-05 Engineer destroyed. Beam Cannon destroyed. The unstable cave ceiling collapses. [Achievement: Remodeling] Aluminum Leg destroyed. The unstable cave ceiling collapses. HV Slug penetrates as-61940. as-61940 destroyed. Grenade Launcher destroyed. Lgt. Ion Engine destroyed. [Achievement: First Step to Greatness] Map ----- +----------------------------------------------------+ | ??????????????????????????????????????????#### #?? | | ??????????????????????????????????????????# ] #?? | | ??????????????????????????????????#####???# ####?? | | ?????????????????????????????????## ##??# #????? | | ????????????????????????????????## ##?# #????? | | ????????????????????????????????# #?# #?##?? | | ?????????????????????????????##?# ### ## ### | | ????????????????????????????? ## ## * | | ?????????????????????????????# ### ## ## | ##### | | ?????????????????????????????# #?##### ## ##??? | | ????????????????????????????## #?????# ## #??? | | ?????????????????????####### # #????## #??? | | ?????????????????????# #k##??## #??? | | ?????????????????????# #?## """ #??? | | ??????????????????#### # %#### """ #?? | | ?????????????????## """ #? | | ?????????????????# # | | ?????????????????# d ### # | | ????????????????## # # #?# #### ## | | ????????????????# #?# #?# ##???####? | | ???????????????## d #??# ? #????????? | | ???????????????# #??###### #????????? | | ? ????????# % ! ##??????# #????????? | | ? % ;## #?????? ????????? | | ? %%% !%% ##?????? ???????? | | ? % % ### @ #?????? ???????? | | ? " ???## #? ??????? | | ??## ? #???# #??#### ?????? | | ?????? #?????#$### ### #??????# ??????? | | ?????## ???????#???##### ##??? #??????????????? | | ???????????????????????## ##?????#??????????????? | | ????????????????????????####?????????????????????? | | ?????????????????????????????????????????????????? | | ?????????????????????????????????????????????????? | | ?????????????????????????????????????????????????? | | ?????????????????????????????????????????????????? | | ?????????????????????????????????????????????????? | | ?????????????????????????????????????????????????? | | ?????????????????????????????????????????????????? | | ?????????????????????????????????????????????????? | | ?????????????????????????????????????????????????? | | ?????????????????????????????????????????????????? | | ?????????????????????????????????????????????????? | | ?????????????????????????????????????????????????? | | ?????????????????????????????????????????????????? | | ?????????????????????????????????????????????????? | | ?????????????????????????????????????????????????? | | ?????????????????????????????????????????????????? | | ?????????????????????????????????????????????????? | | ?????????????????????????????????????????????????? | +----------------------------------------------------+ Best States ------------- Heat Dissipation 35 Energy Generation 10 Energy Capacity 125 Matter Stores 300 Matter Capacity 300 Sight Range 16 Terrain Scan Density 10 Evasion (%) 50 Targeting Accuracy 5 Item Schematics ----------------- None Robot Schematics ------------------ None Fabricated ------------ Nothing Alien Tech Used ----------------- None Achievements -------------- Everything Is Under Control First Step to Greatness Hunted One Hack Too Far Remodeling Storm Trooper Uninvited Guest Challenges ------------ None Game ------ Seed MobileAnalysisPick Manual? 0 Play Time 00:24:49 Cumulative 0.7 hours Start 2021.01.03 @ 17:38:39 End 2021.01.04 @ 03:11:21 Sessions 3 Manual Loads 0 Difficulty Rogue Special Mode None Game No. 1 Rogue 1 Adventurer 0 Explorer 0 Win Type - Total 0 Types 0/0/0/0/0/0/0/0/0 Lore% 0 Gallery% 1 Achievement% 2 Wizard Run 0 Options --------- ASCII 0 Keyboard 0 Movement Mouse Keybinds 0 Fullscreen 1 Font 18/Smallcaps Map View 76x50 Tactical HUD 0 Map Filters NONE Filters NONE Steam 1 RUN: 161af515-608b-4734-ab73-c948afb0850a